Workbook

Sheet TURNOS
A1: CODIGO | B1: TURNO | C1: HO | D1: RN | E1: HED | F1: HEN | G1: HFD | H1: HFN | I1: HEFD | J1: HEFN
A2: 1 | B2: Descanso | C2: 8
A3: 2 | B3: 6am-2pm | C3: 8
A4: 3 | B4: 2pm-10pm | C4: 8
A5: 4 | B5: 10pm-6am | C5: 8 | D5: 8
A6: 5 | B6: 4am-12m | C6: 8 | D6: 2
A7: 6 | B7: 12m-8pm | C7: 8
A8: 7 | B8: 7am-5pm | C8: 8
A9: 8 | B9: 8am-4pm | C9: 8
A10: 9 | B10: 8am-6pm | C10: 8 | E10: 2
A11: 10 | B11: 8am-8pm | C11: 8 | E11: 4
A12: 11 | B12: 8pm-4am | C12: 8 | D12: 6
A13: 12 | B13: 6am-4pm | C13: 8 | E13: 2
A14: 13 | B14: 2pm-12pm | C14: 8 | F14: 2
A15: 14 | B15: 10pm-8am | C15: 8 | D15: 8 | E15: 2
A16: 15 | B16: 4am-2pm | C16: 8 | D16: 2 | E16: 2
A17: 16 | B17: 12m-10pm | C17: 8 | E17: 2
A18: 17 | B18: 8pm-6am | C18: 8 | D18: 6 | F18: 2
A19: 18 | B19: 6am-6pm | C19: 8 | E19: 4
A20: 19 | B20: 6pm-6am | C20: 8 | D20: 4 | F20: 4
A21: 20 | B21: 4am-4pm | C21: 8 | D21: 2 | E21: 4
A22: 21 | B22: 4pm-4am | C22: 8 | D22: 2 | F22: 4
A23: 22 | B23: 6am-2pm | C23: 8 | G23: 8
A24: 23 | B24: 2pm-10pm | C24: 8 | G24: 8
A25: 24 | B25: 10pm-6am | C25: 8 | H25: 8
A26: 25 | B26: F10pm-6am | C26: 8 | D26: 6 | H26: 2
A27: 26 | B27: O10pm-6am | C27: 8 | D27: 2 | H27: 6
A28: 27 | B28: 4am-12m | C28: 8 | G28: 6 | H28: 2
A29: 28 | B29: 12m-8pm | C29: 8 | G29: 8
A30: 29 | B30: 8pm-4am | G30: 2 | H30: 6
A31: 30 | B31: O8pm-4am | C31: 8 | D31: 2 | H31: 4
A32: 31 | B32: F8pm-4am | C32: 8 | D32: 4 | G32: 2 | H32: 2
A33: 32 | B33: 6am-4pm | C33: 8 | G33: 8 | I33: 2
A34: 33 | B34: 2pm-12pm | C34: 8 | G34: 8 | J34: 2
A35: 34 | B35: 10pm-8am | C35: 8 | H35: 6 | I35: 2
A36: 35 | B36: F10pm-8am | C36: 8 | D36: 6 | E36: 2 | H36: 2
A37: 36 | B37: O10pm-8am | C37: 8 | D37: 2 | H37: 6 | I37: 2
A38: 37 | B38: 4am-2pm | C38: 8 | G38: 6 | H38: 2 | I38: 2
A39: 38 | B39: 12m-10pm | C39: 8 | G39: 8 | I39: 2
A40: 39 | B40: 8pm-6am | C40: 8 | G40: 2 | H40: 6 | J40: 2
A41: 40 | B41: F8pm-6am | C41: 8 | D41: 4 | F41: 2 | G41: 2 | H41: 2
A42: 41 | B42: O8pm-6am | C42: 8 | D42: 2 | H42: 4 | J42: 2
A43: 42 | B43: 6am-6pm | C43: 8 | G43: 8 | I43: 4
A44: 43 | B44: 6pm-6am | C44: 8 | G44: 4 | H44: 4 | J44: 4
A45: 44 | B45: F6pm-6am | C45: 8 | D45: 2 | F45: 4 | G45: 4 | H45: 2
A46: 45 | B46: O6pm-6am | C46: 8 | D46: 2 | H46: 2 | J46: 4
A47: 46 | B47: 4am-4pm | C47: 8 | G47: 6 | H47: 2 | I47: 4
A48: 47 | B48: 4pm-4am | C48: 8 | G48: 6 | H48: 2 | J48: 4
A49: 48 | B49: F4pm-4am | C49: 8 | F49: 4 | G49: 6 | H49: 2
A50: 49 | B50: O4pm-4am | C50: 8 | D50: 2 | J50: 4

Sheet EMPLEADOS
A1: CEDULA | B1: NOMBRE | C1: SALARIO BASICO | D1: AREA
A2: 4096 | B2: ACEVEDO AYALA FABIO ANDRES | C2: 900000 | D2: CONTABILIDAD
A3: 4070 | B3: ALARCON FRAILE DILBER MAURICIO | C3: 980000 | D3: COMERCIAL
A4: 4168 | B4: ANGUCHO LOPEZ JOSE LUIS | C4: 900000 | D4: BODEGA
A5: 4336 | B5: ANGULO CUERO JOSE EDWIN | C5: 1300000 | D5: BODEGA
A6: 4370 | B6: ANZOLA VASQUEZ DIANA JAZMIN | C6: 1500000 | D6: PRODUCCION
A7: 4057 | B7: BARRAGAN PAEZ HEINER ANDRES | C7: 1400000 | D7: LOGISTICA
A8: 4434 | B8: BARRIOS FLOREZ LISSETTE | C8: 1200000 | D8: CONTABILIDAD
A9: 4432 | B9: CANTOR ESCOBAR JULIO ALEXANDE | C9: 900000 | D9: COMERCIAL
A10: 4005 | B10: CASTRO BUITRAGO JOHAN JAVIER | C10: 870000 | D10: BODEGA
A11: 4418 | B11: CASTRO URIBE LUZ ELENA | C11: 1340000 | D11: BODEGA
A12: 4445 | B12: CRUZ NOVA JULIE MILENA | C12: 644350 | D12: PRODUCCION
A13: 4293 | B13: NIETO VELA JORGE EDUARDO | C13: 644350 | D13: LOGISTICA
A14: 4451 | B14: ORTIZ CABEZAS JESUS MARIA | C14: 700000 | D14: CONTABILIDAD
A15: 4080 | B15: OSORIO GONZALEZ JAIRO ENRIQUE | C15: 800000 | D15: COMERCIAL
A16: 4307 | B16: PACHECO LARA JULLI MARCELA | C16: 800000 | D16: BODEGA
A17: 4473 | B17: PALOMEQUE GUERRERO DIEGO EDISO | C17: 900000 | D17: BODEGA
A18: 4461 | B18: PARDO SANCHEZ SILVIA ARACELY | C18: 760000 | D18: PRODUCCION
A19: 4110 | B19: PATINO HEREDIA DAVID | C19: 980000 | D19: LOGISTICA
A20: 4072 | B20: PENA SEPULVEDA MAURICIO ALEJAN | C20: 1200000 | D20: CONTABILIDAD
A21: 4334 | B21: PIZA TORRES ALEXANDER | C21: 1300000 | D21: COMERCIAL
A22: 4008 | B22: POLANIA CARLOS ALBERTO | C22: 1500000 | D22: BODEGA
A23: 4192 | B23: QUINONES ALARCON CRISTIAN CAMI | C23: 1800000 | D23: CONTABILIDAD
A24: 4350 | B24: QUINTERO CHAMORRO JOSE CAMILO | C24: 1200000 | D24: COMERCIAL
A25: 4116 | B25: RIOS HERRERA CLAUDIA MILENA | C25: 900000 | D25: BODEGA
A26: 4430 | B26: RODRIGUEZ ANGEL CARLOS EDUARDO | C26: 760000 | D26: BODEGA
A27: 4398 | B27: ROJAS QUINTERO IVAN MAURICIO | C27: 4500000 | D27: PRODUCCION
A28: 4100 | B28: GONZALEZ IZQUIERDO LUZ | C28: 3000000 | D28: CONTABILIDAD

Sheet LIQUIDACION INDIVIDUAL
A1: FECHA | B1: DIA | C1: CODIGO TURNO | D1: TURNO | E1: HO | F1: RN | G1: HED | H1: HEN | I1: HFD | J1: HFN | K1: HEFD | L1: HEFN
A2: 2015-08-01 | B2: lunes | D2: =IFERROR(VLOOKUP(C2,turnos,2,0),"") ->  | E2: =IFERROR(VLOOKUP(C2,turnos,3,0),"") ->  | F2: =IFERROR(VLOOKUP(C2,turnos,4,0),"") ->  | G2: =IFERROR(VLOOKUP(C2,turnos,5,0),"") ->  | H2: =IFERROR(VLOOKUP(C2,turnos,6,0),"") ->  | I2: =IFERROR(VLOOKUP(C2,turnos,7,0),"") ->  | J2: =IFERROR(VLOOKUP(C2,turnos,8,0),"") ->  | K2: =IFERROR(VLOOKUP(C2,turnos,9,0),"") ->  | L2: =IFERROR(VLOOKUP(C2,turnos,10,0),"") -> 
A3: 2015-08-02 | B3: martes
A4: 2015-08-03 | B4: miércoles
A5: 2015-08-04 | B5: jueves
A6: 2015-08-05 | B6: viernes
A7: 2015-08-06 | B7: sábado
A8: 2015-08-07 | B8: domingo
A9: 2015-08-08 | B9: lunes
A10: 2015-08-09 | B10: martes
A11: 2015-08-10 | B11: miércoles
A12: 2015-08-11 | B12: jueves
A13: 2015-08-12 | B13: viernes
A14: 2015-08-13 | B14: sábado
A15: 2015-08-14 | B15: domingo
A16: 2015-08-15 | B16: lunes | D16: =IFERROR(VLOOKUP(C16,turnos,2,0),"") -> 
D17: =IFERROR(VLOOKUP(C17,turnos,2,0),"") -> 
B18: DIAS LABORADOS | C18: =COUNT(C2:C17) -> 0 | E18: =SUM(E2:E17) -> 0 | F18: =SUM(F2:F17) -> 0 | G18: 0 | H18: 0 | I18: 0 | J18: 0 | K18: 0 | L18: 0
A20: CEDULA | D20: 4096 | E20: NOMBRE | H20: =IFERROR(VLOOKUP(D20,EMPLEADOS,2,0),"") -> ACEVEDO AYALA FABIO ANDRES
F22: SB | H22: =IFERROR(VLOOKUP(D20,EMPLEADOS,3,0),"") -> 900000
A23: RESUMEN LIQUIDACION INDIVIDUAL
A24: CEDULA | B24: NOMBRE | C24: DIAS LABORADOS | D24: SB DEVENGADO | E24: TOTAL NOVEDADES | F24: COMISIONES | G24: BONIFICACIONES | H24: TOTAL DEVENGADO | I24: TOTAL DEDUCCCIONES | J24: AUXILIO DE TRASNPORTE | K24: NETO A PAGAR | L24: =G1 -> HED | M24: =H1 -> HEN | N24: =F1 -> RN | O24: =I1 -> HFD | P24: =J1 -> HFN | Q24: HEFD | R24: HEFN
A25: =D20 -> 4096 | B25: =H20 -> ACEVEDO AYALA FABIO ANDRES | C25: =C18 -> 0 | D25: =E28 -> 0 | E25: =E36 -> 0 | F25: =E37 -> 0 | G25: =E38 -> 0 | H25: =E39 -> 0 | I25: =E45 -> 0 | J25: =E48 -> 0 | K25: =A51 -> 0 | L25: =G18 -> 0 | M25: =H18 -> 0 | N25: =F18 -> 0 | O25: =I18 -> 0 | P25: =J18 -> 0 | Q25: =K18 -> 0 | R25: =L18 -> 0
A27: DEVENGADOS
A28: SALARIO BASICO | E28: =IFERROR(H22*E18/240,0) -> 0
A29: RN | E29: =IFERROR(H22*0.35*F18/240,0) -> 0
A30: HED | E30: =IFERROR(H22*1.25*G18/240,0) -> 0
A31: HEN | E31: =IFERROR(H22*1.75*H18/240,0) -> 0
A32: HFD | E32: =IFERROR(H22*I18*1.75/240,0) -> 0
A33: HFN | E33: =IFERROR(H22*2.1*J18/240,0) -> 0
A34: HEFD | E34: =IFERROR(H22*2*K18/240,0) -> 0
A35: HEFN | E35: =IFERROR(H22*2.5*L18/240,0) -> 0
A36: TOTAL NOVEDADES | E36: =SUM(E29:I35) -> 0
A37: COMISIONES
A38: BONIFICACIONES
A39: TOTAL DEVENGADO | E39: =E28+E36+E37+E38 -> 0
A41: DEDUCCIONES
A42: SALUD | E42: =E39*4% -> 0
A43: PENSION | E43: =E39*4% -> 0
A44: PRESTAMO
A45: TOTAL DEDUCCIONES | E45: =SUM(E42:I44) -> 0
A47: AUXILIO DE TRANSPORTE
A48: AUX TRANS | E48: =IF(H22<(644350*2),(E18*74000)/240,0) -> 0
A50: NETO A PAGAR
A51: =E39-E45+E48 -> 0
A53: APROPIACIONES
A54: PENSION | E54: 76845
A55: RIESGOS | E55: 3342.7575
A56: PRIMA | E56: 53343.2375
A57: CESANTIAS | E57: 53343.2375
A58: INT CESANTIAS | E58: 533.432375
A59: VACACIONES | E59: 18765
A60: CAJA COMPENSACION | E60: 25615
A61: TOTAL APROPIACIONES | B61: TOTAL APROPIACIONES | E61: =SUM(E54:I60) -> 231787.6649

Sheet APROPIACIONES
B2: SALARIO BASICO | C2: DEVENGADO BRUTO | D2: AUX TRANSPORTE
A3: PENSION
A5: RIESGOS
A7: PRIMA
A9: CESANTIAS
A11: INT CESANTIAS
A13: VACACIONES
A15: CAJA COMPENSACION

Sheet REGISTRO NOVEDADES GENERALES
A1: CEDULA | B1: NOMBRE | C1: DIAS LABORADOS | D1: SB DEVENGADO | E1: TOTAL NOVEDADES | F1: COMISIONES | G1: BONIFICACIONES | H1: TOTAL DEVENGADO | I1: TOTAL DEDUCCCIONES | J1: AUXILIO DE TRASNPORTE | K1: NETO A PAGAR | L1: HED | M1: HEN | N1: RN | O1: HFD | P1: HFN | Q1: HEFD | R1: HEFN

Sheet LIQUIDACION GENERAL
AF4: V
B5: NOMINA PARA EL PAGO DE SUELDOS | AC5: TRABAJO EXTRA MES DE AGOSTO
B7: COD | D7: DOCUMENTO | F7: NOMBRES | H7: SUELDO BÁSICO MENSUAL | J7: D E V E N G A D O | S7: DEDUCIDO | AA7: FIRMA DE RECIBIDO | AC7: 1.25 | AE7: 1.75 | AG7: 0.35 | AI7: 1.75 | AK7: 2.1 | AM7: 2 | AO7: 2.5 | AR7: VALOR TOTAL DE HORAS EXTRAS Y RECARGOS
J8: DIAS LABORADOS | K8: BÁSICO DEVENGADO | L8: EXTRAS Y RECARGOS | M8: COMISIONES | N8: BONIFICACIONES | O8: TOTAL DEVENGADO | P8: AUXILIO DE TRANSPORTE | Q8: DEVENGADO CON AUXILIO DE TRANSPORTE | S8: SALUD | T8: PENSIÓN | U8: FONDO DE SOLIDARIDAD | V8: RETENCIÓN EN LA FUENTE SALARIOS | W8: APORTE A SINDICATO | X8: TOTAL DEDUCIDO | Y8: NETO A PAGAR | AC8: H EXTRA DIURNA | AE8: H EXTRA NOCTURNA | AG8: RECARGO NOCTURNO | AI8: HORA FESTIVA DIURNA | AK8: HORA FESTIVA NOCTURNA | AM8: HORA EXTRA FESTIVA DIURNA | AO8: HORA EXTRA FESTIVA NOCTURNA
S9: 0.04 | T9: 0.04 | W9: 0.02 | AC9: CANT. | AD9: VALOR | AE9: CANT. | AF9: VALOR. | AG9: CANT. | AH9: VALOR. | AI9: CANT. | AJ9: VALOR | AK9: CANT. | AL9: VALOR | AM9: CANT. | AN9: VALOR. | AO9: H.E.F.D. | AP9: H.E.F.N.
S10: 0.04 | T10: 0.03375 | U10: SOCIAL 1% | V10: FUENTE | W10: SIND 2% | X10: DEDUCIDO | Y10: PAGAR | AA10: FIRMA | AO10: H.E.F.D. | AP10: H.E.F.N.
B11: 1 | D11: 4070 | F11: =IFERROR(VLOOKUP(D11,EMPLEADOS,2,0),"") -> ALARCON FRAILE DILBER MAURICIO | H11: =IFERROR(VLOOKUP(D11,EMPLEADOS,3,0),"") -> 980000 | J11: =IFERROR(VLOOKUP(D11,EMPLEADOS2,3,0),"") ->  | K11: =IFERROR(SUM(H11/30*J11),0) -> 0 | L11: =IFERROR(VLOOKUP(D11,EMPLEADOS2,5,0),"") ->  | M11: =IFERROR(VLOOKUP(D11,EMPLEADOS2,6,0),"") ->  | N11: =IFERROR(VLOOKUP(D11,EMPLEADOS2,7,0),"") ->  | O11: =IFERROR(SUM(K11:N11),0) -> 0 | P11: =IF((H11)<=(644350*2),74000/30*(J11),0) ->  | Q11: =IFERROR(+O11+P11,0) -> 0 | S11: =+O11*$S$9 -> 0 | T11: =+O11*$T$9 -> 0 | U11: =IF((O11)>2464000,(O11)*1%,0) -> 0 | X11: =SUM(S11:W11) -> 0 | Y11: =+Q11-X11 -> 0 | AC11: =IFERROR(VLOOKUP(D11,EMPLEADOS2,12,0),"") ->  | AD11: =IFERROR((+H11*AC11*$AC$7)/240,"") ->  | AE11: =IFERROR(VLOOKUP(D11,EMPLEADOS2,13,0),"") ->  | AF11: =IFERROR(+H11*AE11*$AE$7/240,"") ->  | AG11: =IFERROR(VLOOKUP(D11,EMPLEADOS2,14,0),"") ->  | AH11: =IFERROR(+H11*AG11*$AG$7/240,"") ->  | AI11: =IFERROR(VLOOKUP(D11,EMPLEADOS2,15,0),"") ->  | AJ11: =IFERROR(+H11*AI11*$AI$7/240,"") ->  | AK11: =IFERROR(VLOOKUP(D11,EMPLEADOS2,16,0),"") ->  | AL11: =IFERROR(+H11*AK11*$AK$7/240,"") ->  | AM11: =IFERROR(VLOOKUP(D11,EMPLEADOS2,17,0),"") ->  | AN11: =IFERROR(+H11*AM11*$AM$7/240,"") ->  | AO11: =IFERROR(VLOOKUP(D11,EMPLEADOS2,18,0),"") ->  | AP11: =IFERROR(+H11*AO11*$AO$7/240,"") ->  | AR11: =IFERROR(+AP11+AN11+AL11+AJ11+AH11+AF11+AD11,"") -> 
B12: =+B11+1 -> 2 | K12: =IFERROR(SUM(H12/30*J12),0) -> 0 | O12: =IFERROR(SUM(K12:N12),0) -> 0 | P12: 0 | Q12: =IFERROR(+O12+P12,0) -> 0 | S12: =+O12*$S$9 -> 0 | T12: =+O12*$T$9 -> 0 | U12: =IF((O12)>2464000,(O12)*1%,0) -> 0 | X12: =SUM(S12:W12) -> 0 | Y12: =+Q12-X12 -> 0 | AD12: =IFERROR((+H12*AC12*$AC$7)/240,"") ->  | AF12: =IFERROR(+H12*AE12*$AE$7/240,"") ->  | AH12: =IFERROR(+H12*AG12*$AG$7/240,"") ->  | AJ12: =IFERROR(+H12*AI12*$AI$7/240,"") ->  | AL12: =IFERROR(+H12*AK12*$AK$7/240,"") ->  | AN12: =IFERROR(+H12*AM12*$AM$7/240,"") ->  | AP12: =IFERROR(+H12*AO12*$AO$7/240,"") ->  | AR12: =IFERROR(+AP12+AN12+AL12+AJ12+AH12+AF12+AD12,"") -> 
B13: =+B12+1 -> 3 | K13: 0 | O13: 0 | P13: 0 | Q13: 0 | S13: 0 | T13: 0 | U13: =IF((O13)>2464000,(O13)*1%,0) -> 0 | X13: 0 | Y13: 0
B14: 4 | K14: 0 | O14: 0 | P14: 0 | Q14: 0 | S14: 0 | T14: 0 | U14: 0 | X14: 0 | Y14: 0
B15: 5 | K15: 0 | O15: 0 | P15: 0 | Q15: 0 | S15: 0 | T15: 0 | U15: 0 | X15: 0 | Y15: 0
B16: 6 | K16: 0 | O16: 0 | P16: 0 | Q16: 0 | S16: 0 | T16: 0 | U16: 0 | X16: 0 | Y16: 0
B17: 7 | K17: 0 | O17: 0 | P17: 0 | Q17: 0 | S17: 0 | T17: 0 | U17: 0 | X17: 0 | Y17: 0
B18: 8 | K18: 0 | O18: 0 | P18: 0 | Q18: 0 | S18: 0 | T18: 0 | U18: 0 | X18: 0 | Y18: 0
B19: 9 | K19: 0 | O19: 0 | P19: 0 | Q19: 0 | S19: 0 | T19: 0 | U19: 0 | X19: 0 | Y19: 0
B20: 10 | K20: 0 | O20: 0 | P20: 0 | Q20: 0 | S20: 0 | T20: 0 | U20: 0 | X20: 0 | Y20: 0
B21: 11 | K21: 0 | O21: 0 | P21: 0 | Q21: 0 | S21: 0 | T21: 0 | U21: 0 | X21: 0 | Y21: 0
B22: 12 | K22: 0 | O22: 0 | P22: 0 | Q22: 0 | S22: 0 | T22: 0 | U22: 0 | X22: 0 | Y22: 0
B23: 13 | K23: 0 | O23: 0 | P23: 0 | Q23: 0 | S23: 0 | T23: 0 | U23: 0 | X23: 0 | Y23: 0
B24: 14 | K24: 0 | O24: 0 | P24: 0 | Q24: 0 | S24: 0 | T24: 0 | U24: 0 | X24: 0 | Y24: 0
B25: 15 | K25: 0 | O25: 0 | P25: 0 | Q25: 0 | S25: 0 | T25: 0 | U25: 0 | X25: 0 | Y25: 0
B26: 16 | K26: 0 | O26: 0 | P26: 0 | Q26: 0 | S26: 0 | T26: 0 | U26: 0 | X26: 0 | Y26: 0
B27: 17 | K27: 0 | O27: 0 | P27: 0 | Q27: 0 | S27: 0 | T27: 0 | U27: 0 | X27: 0 | Y27: 0
B28: 18 | K28: 0 | O28: 0 | P28: 0 | Q28: 0 | S28: 0 | T28: 0 | U28: 0 | X28: 0 | Y28: 0
B29: 19 | K29: 0 | O29: 0 | P29: 0 | Q29: 0 | S29: 0 | T29: 0 | U29: 0 | X29: 0 | Y29: 0
B30: 20 | K30: 0 | O30: 0 | P30: 0 | Q30: 0 | S30: 0 | T30: 0 | U30: 0 | X30: 0 | Y30: 0
B31: 21 | K31: 0 | O31: 0 | P31: 0 | Q31: 0 | S31: 0 | T31: 0 | U31: 0 | X31: 0 | Y31: 0
B32: 22 | K32: 0 | O32: 0 | P32: 0 | Q32: 0 | S32: 0 | T32: 0 | U32: 0 | X32: 0 | Y32: 0
B33: 23 | K33: 0 | O33: 0 | P33: 0 | Q33: 0 | S33: 0 | T33: 0 | U33: 0 | X33: 0 | Y33: 0
B34: 24 | K34: 0 | O34: 0 | P34: 0 | Q34: 0 | S34: 0 | T34: 0 | U34: 0 | X34: 0 | Y34: 0
B35: 25 | K35: 0 | O35: 0 | P35: 0 | Q35: 0 | S35: 0 | T35: 0 | U35: 0 | X35: 0 | Y35: 0
Q36: =SUM(O36+P36) -> 0 | T36: =SUM(#REF!+O36)*3.375% -> 
H37: =SUM(H11:H35) -> 980000 | K37: =SUM(K11:K35) -> 0 | L37: =SUM(L11:L35) -> 0 | M37: 0 | N37: 0 | O37: 0 | Q37: 0 | S37: =SUM(S11:S35) -> 0 | T37: =SUM(T11:T35) -> 0 | U37: 0 | V37: 0 | W37: 0 | X37: 0 | Y37: 0 | AA37: =SUM(AA11:AA28) -> 0 | AC37: =SUM(AC11:AC36) -> 0 | AD37: =SUM(AD11:AD35) -> 0 | AE37: =SUM(AE11:AE36) -> 0 | AF37: 0 | AG37: 0 | AH37: 0 | AI37: 0 | AJ37: 0 | AK37: 0 | AL37: 0 | AM37: 0 | AN37: 0 | AO37: 0 | AP37: 0 | AR37: =SUM(AR11:AR36) -> 0
T38: =SUM(#REF!+O38)*3.375% -> 
U40: CONTABILIZACIÓN DE LA NÓMINA
D42: APROPIACIONES DE NÓMINA | F42: PROVISIÓN PARA PRESTACIONES SOCIALES | U42: CÓDIGO | V42: CUENTAS | Y42: DÉBITO | AA42: CRÉDITO
J44: BASE DE LIQUIDACIÓN | L44: % | M44: PROVISIÓN EMPRESA | U44: 5105 | V44: GASTOS DE PERSONAL
U45: 510506 | V45: Sueldos | Y45: =+K37 -> 0
F46: CESANTIAS | J46: =+Q37 -> 0 | L46: 0.0833 | M46: =+J46*L46 -> 0 | U46: 510515 | V46: Horas Extras y Recargos | Y46: =+L37 -> 0
F47: INTERESES SOBRE CESANTÍAS | J47: =+M46 -> 0 | L47: 0.12 | M47: =+J47*L47 -> 0 | U47: 510518 | V47: Comisiones | Y47: =+M37 -> 0
F48: VACACIONES | J48: =+O37 -> 0 | L48: 0.0417 | M48: =+J48*L48 -> 0 | U48: 510527 | V48: Auxilio de Transporte | Y48: =+P37 -> 
F49: PRIMA DE SERVICIOS | J49: =+Q37 -> 0 | L49: 0.0833 | M49: =+J49*L49 -> 0 | U49: 510548 | V49: Bonificaciones | Y49: =+N37 -> 0
M50: =SUM(M46:M49) -> 0 | U50: 2370 | V50: RETENCIONES Y APORTES DE NÓMINA
F51: Total Devengado (Incluyendo auxilio de transporte) | K51: Total Devengado (Sin Incluir Auxilio de Transporte) | U51: 237005 | V51: Aportes a Entidades Promotoras de Salud | AA51: =+S37 -> 0
U52: 237045 | V52: Fondos de Pensión | AA52: =+T37 -> 0
F53: PROVISIÓN PARA LA SEGURIDAD SOCIAL | U53: 237045 | V53: Fondo de Solidaridad | AA53: =+U37 -> 0
O54: RESUMEN | U54: 237035 | V54: Sindicatos | AA54: =+W37 -> 0
H55: BASE DE LIQUIDACIÓN | J55: TRABAJADOR | K55: EMPRESA | L55: % | M55: TOTAL A PAGAR | O55: TRABAJADOR | P55: EMPRESA | Q55: TOTAL | U55: 2380 | V55: ACREEDORES VARIOS
F56: SALUD | H56: =+$O$37+$P$37 ->  | J56: =+S37 -> 0 | K56: =+H56*L56 ->  | L56: 0 | M56: =+J56+K56 ->  | N56: SALUD | O56: 0.04 | P56: 0.085 | Q56: =+O56+P56 -> 0.125 | U56: 238030 | V56: Fondos de Cesantías y/o Pensiones
F57: PENSIÓN | H57: =+$O$37+$P$37 ->  | J57: =+T37 -> 0 | K57: =+H57*L57 ->  | L57: 0.12 | M57: =+J57+K57 ->  | N57: PENSIÓN | O57: 0.04 | P57: 0.12 | Q57: =+O57+P57 -> 0.16 | U57: 2365 | V57: RETENCIÓN EN LA FUENTE
F58: ARL | K58: =+H58*L58 ->  | L58: 0.0435 | M58: =+K58 ->  | N58: ARL | P58: 0.00522 | Q58: =+O58+P58 -> 0.00522 | U58: 236505 | V58: Salarios y Pagos Laborales | AA58: =+V37 -> 0
M59: =SUM(M56:M58) ->  | U59: 1110 | V59: BANCOS | Z59: =+Y37 -> 0 | AA59: =+Y37 -> 0
Y60: =SUM(Y43:Y59) ->  | Z60: =SUM(Z43:Z59) -> 0 | AA60: 0
F61: Sin incluir aux de transporte | O61: Con la Ley 1607 de 2012, art. 25, quedan exonerados excepcionalmente de aportes al ICBF y SENA:
F63: PROVISIÓN PARAFISCALES
H65: BASE DE LIQUIDACIÓN | J65: TRABAJADOR | K65: EMPRESA | L65: % | M65: TOTAL A PAGAR | O65: - Las sociedades y personas juridicas y asimiladas contribuyentes del impuesto de renta y complementarios. | AA65: =+AA60-Y60 -> 
F66: CAJA DE COMPENSACIÓN | H66: =+$O$37+$P$37 ->  | J66: 0 | K66: =+H66*L66 ->  | L66: 0.04 | M66: =+K66 -> 
F67: SENA | H67: =+$O$37+$P$37 ->  | J67: 0 | K67: =+H67*L67 ->  | L67: 0 | M67: =+K67 -> 
F68: ICBF | J68: 0 | K68: =+H68*L68 ->  | L68: 0 | M68: =+K68 ->  | O68: -Las personas naturales empleadoras que tengan dos o más empleados.
M70: =SUM(M66:M68) ->  | O70: Requisito: No superen los 10 Salarios mínimos
H71: Total Devengado (Sin incluir Aux de Transporte)
J75: =+F42 -> PROVISIÓN PARA PRESTACIONES SOCIALES
J76: CÓDIGOS | K76: CUENTAS | N76: DÉBITOS | O76: CRÉDITOS
J78: 5105 | K78: GASTOS DE PERSONAL
J79: 510530 | K79: Cesantías | N79: =+M46 -> 0
J80: 510533 | K80: Intereses sobre cesantías | N80: =+M47 -> 0
J81: 510539 | K81: Vacaciones | N81: =+M48 -> 0
J82: 510536 | K82: Prima de Servicios | N82: =+M49 -> 0
J84: 26 | K84: PASIVOS ESTIMADOS Y PROVISIONES
J85: 2610 | K85: PARA OBLIGACIONES LABORALES
J86: 261005 | K86: Cesantías | O86: =+N79 -> 0
J87: 261010 | K87: Intereses sobre cesantías | O87: =+N80 -> 0
J88: 261015 | K88: Vacaciones | O88: =+N81 -> 0
J89: 261020 | K89: Prima de Servicios | O89: =+N82 -> 0
J90: SUMAS IGUALES | N90: =SUM(N79:N89) -> 0 | O90: =SUM(O79:O89) -> 0
J92: =+F53 -> PROVISIÓN PARA LA SEGURIDAD SOCIAL
J93: CÓDIGOS | K93: CUENTAS | N93: DÉBITOS | O93: CRÉDITOS
J95: 5105 | K95: GASTOS DE PERSONAL
J96: 510569 | K96: Aportes a Entidades Promotoras de Salud | N96: =+K56 -> 
J97: 510570 | K97: Aportes a fondos de pensiones y/o cesantías | N97: =+K57 -> 
J98: 510568 | K98: Administradora de Riesgos Profesionales | N98: =+K58 -> 
J100: 2370 | K100: RETENCIONES Y APORTES DE NÓMINA
J101: 237005 | K101: Aportes a Entidades Promotoras de Salud EPS | O101: =+N96 -> 
J102: 237045 | K102: Fondos de Pensión | O102: =+N97 -> 
J103: 237006 | K103: Aportes a Administradoras de Riesgos Profesionales | O103: =+N98 -> 
J104: SUMAS IGUALES | N104: =SUM(N96:N103) ->  | O104: =SUM(O96:O103) -> 
J106: =+F63 -> PROVISIÓN PARAFISCALES
J107: CÓDIGOS | K107: CUENTAS | N107: DÉBITOS | O107: CRÉDITOS | Q107: Con la Ley 1607 de 2012, art. 25, quedan exonerados excepcionalmente de aportes al ICBF y SENA:
J109: 5105 | K109: GASTOS DE PERSONAL
J110: 510572 | K110: Aportes a Cajas de Compensación Familiar | N110: =+K66 -> 
J111: 510575 | K111: Aportes Icbf | N111: =+K68 ->  | Q111: - Las sociedades y personas juridicas y asimiladas contribuyentes del impuesto de renta y complementarios.
J112: 510578 | K112: Aportes Sena | N112: =+K67 -> 
J113: 2370 | K113: RETENCIONES Y APORTES DE NÓMINA
J114: 237010 | K114: Aportes al ICBF, SENA Cajas de Compensación | O114: =SUM(N110:N112) ->  | Q114: -Las personas naturales empleadoras que tengan dos o más empleados.
J116: SUMAS IGUALES | N116: =SUM(N110:N115) ->  | O116: =SUM(O110:O114) ->  | Q116: Requisito: No superen los 10 Salarios mínimos

Sheet DESPRENDIBLES DE NÓMINA
C2: DESPRENDIBLE PAGO DE NOMINA
A7: NOMBRE :
A8: Doc. Identidad :
A9: MES :
A11: CONCEPTO | D11: CANTIDAD | E11: DEVENGADO | F11: DEDUCIDO
A12: SALARIO | D12: 30 | E12: 408000
A13: SUBSIDIO | E13: 47700
A14: OTROS INGRESOS ( ) | E14: 0
A15: SALUD EMPLEADO | F15: =+E12*4% -> 16320
A16: PENSION EMPLEADO | F16: =+E12*3.875% -> 15810
A17: OTROS DESCUENTOS | F17: 0
A18: SUBTOTAL | E18: =SUM(E12:E17) -> 455700 | F18: =SUM(F12:F17) -> 32130
A19: NETO A PAGAR | D19: =+E18-F18 -> 423570
C23: DESPRENDIBLE PAGO DE NOMINA
A28: NOMBRE :
A29: Doc. Identidad :
A30: MES :
A32: CONCEPTO | D32: CANTIDAD | E32: DEVENGADO | F32: DEDUCIDO
A33: SALARIO | D33: 30 | E33: 408000
A34: SUBSIDIO | E34: 47700
A35: OTROS INGRESOS ( ) | E35: 0
A36: SALUD EMPLEADO | F36: =+E33*4% -> 16320
A37: PENSION EMPLEADO | F37: =+E33*3.875% -> 15810
A38: OTROS DESCUENTOS | F38: 0
A39: SUBTOTAL | E39: =SUM(E33:E38) -> 455700 | F39: =SUM(F33:F38) -> 32130
A40: NETO A PAGAR | D40: =+E39-F39 -> 423570
C44: DESPRENDIBLE PAGO DE NOMINA
A49: NOMBRE :
A50: Doc. Identidad :
A51: MES :
A53: CONCEPTO | D53: CANTIDAD | E53: DEVENGADO | F53: DEDUCIDO
A54: SALARIO | D54: 30 | E54: 408000
A55: SUBSIDIO | E55: 47700
A56: OTROS INGRESOS ( ) | E56: 0
A57: SALUD EMPLEADO | F57: =+E54*4% -> 16320
A58: PENSION EMPLEADO | F58: =+E54*3.875% -> 15810
A59: OTROS DESCUENTOS | F59: 0
A60: SUBTOTAL | E60: =SUM(E54:E59) -> 455700 | F60: =SUM(F54:F59) -> 32130
A61: NETO A PAGAR | D61: =+E60-F60 -> 423570

Sheet PRESTACIONES
D3: LIQUIDACION FINAL DE PRESTACIONES SOCIALES
D5: NOMBRE DEL EMPEADO | F5: ALEJANDRO CARDONA
D6: CARGO | F6: MENSAJERO
D7: FECHA DE INGRESO | F7: 2008-02-22
D8: FECHA DE RETIRO | F8: 2008-09-02
D9: DIAS LABORADOS | F9: =DAYS360(F7,F8)+1 -> 191
D10: TIPO CONTRATO | F10: FIJO
D11: CAUSAL DE RETIRO
D13: SALARIO BASE DE LIQUIDACION | J13: 1340000
D14: SUELDO PROMEDIO ULTIMO AÑO | J14: 1420000
D15: AUXILIO DE TRANSPORTE
D16: TOTAL | J16: =+J14+J15 -> 1420000
D18: VACACIONES
D19: DESDE | E19: HASTA
D20: 2015-08-28 | E20: 2015-09-26 | G20: =J13 -> 1340000 | H20: X | I20: =DAYS360(D20,E20)+2 -> 30 | J20: =+(G20*I20)/H21 -> 55833.33333
H21: 720
D22: PRIMA DE SERVICIOS
D23: DESDE | E23: HASTA
D24: 2015-07-01 | E24: =+E20 -> 2015-09-26 | G24: =+J16 -> 1420000 | H24: X | I24: =DAYS360(D24,E24)+2 -> 87 | J24: =+(G24*I24)/H25 -> 343166.6667
H25: 360
D26: CESANTIAS
D27: DESDE | E27: HASTA
D28: 2015-01-01 | E28: =+E24 -> 2015-09-26 | G28: =+J16 -> 1420000 | H28: X | I28: =DAYS360(D28,E28)+2 -> 267 | J28: =+(G28*I28)/H29 -> 1053166.667
H29: 360
D30: INTERESES CESANTIAS
D31: DESDE | E31: HASTA
D32: =+D28 -> 2015-01-01 | E32: =+E28 -> 2015-09-26 | G32: =+J28 -> 1053166.667 | H32: X 0,12 X | I32: =+DAYS360(D32,E32)+2 -> 267 | J32: =+(G32*0.12*I32)/H33 -> 93731.83333
H33: 360
D34: TOTAL PAGOS | J34: =+J20+J24+J28+J32 -> 1545898.5
D36: INDEMNIZACION | J36: ='[1]INDEM INF 10 SMLV '!K31 -> 4985296.296
D38: B. DEDUCCIONES
J40: 0
D42: TOTAL A PAGAR | J42: =+J34+J36-J40 -> 6531194.796
D44: Declaro haber recibido de ABC LTDA, la suma indicada arriba por los conceptos detallados, liquidacion que ha sido realizada conforme a lo establecido en el Código Sustantivo del Trabajo, razon por la cual la Empresa ABC LTDA se encuentra a paz y salvo.
D52: FIRMA TRABAJADOR
D53: C.C

Sheet INDEMNIZACION INDEFINIDO
D4: LIQUIDACION INDEMNIZACION CONTRATO A TERMINO INDEFINIDO CON SUELDO INFERIOR A 10 SMLV
D6: NOMBRE DEL EMPEADO
D7: CARGO
D8: FECHA DE INGRESO | G8: 2010-08-28
D9: FECHA DE RETIRO | G9: 2015-09-26
D10: DIAS LABORADOS | G10: =DAYS360(G8,G9)+1 -> 1829
D11: AÑOS LABORADOS | G11: =+G10/360 -> 5.080555556
D14: SALARIO BASE DE LIQUIDACION | K14: 1340000
D16: INDEMNIZACION
F17: SUELDO | G17: X | H17: 30
D18: PRIMER AÑO | G18: 30
F20: =+K14 -> 1340000 | G20: X | H20: 30 | K20: =+F20*H20/G21 -> 1340000
G21: 30
H23: AÑOS LABORADOS MENOS 1
F24: SUELDO X | G24: 20 X
D25: AÑOS SUBSIGUIENTES | G25: 30
F27: =+K14 -> 1340000 | G27: X | H27: 20 | I27: X | J27: =+G11-1 -> 4.080555556 | K27: =+F27*H27*J27/G28 -> 3645296.296
G28: 30
D31: TOTAL INDEMNIZACION | K31: =+K27+K20 -> 4985296.296
